fUSD/lending_fUSD_20240620
["ID","MTS","AMOUNT","RATE_DAILY","PERIOD"]
[329950207,1718859037856,-500.0,0.00013698,2]
[329950209,1718859037865,-198.4829993,0.00013698,2]
[329950211,1718859037875,-447.68988914,0.00013698,2]
[329950213,1718859037884,-500.0,0.00013698,2]
[329950215,1718859037894,-500.0,0.00013698,2]
[329950217,1718859037903,-500.0,0.00013698,2]
[329950219,1718859037912,-990.61,0.00013698,2]
[329950221,1718859037922,-500.0,0.00013698,2]
[329950223,1718859037931,-500.0,0.00013698,2]
[329950225,1718859037941,-500.0,0.00013698,2]
[329950227,1718859037950,-507.76074878,0.00013698,2]
[329950229,1718859037959,-783.17,0.00013698,2]
[329950231,1718859037969,-578.6042668,0.00013698,2]
[329950233,1718859037979,-500.0,0.00013698,2]
[329950235,1718859037989,-667.29,0.00013698,2]
[329950237,1718859037999,-500.0,0.00013698,2]
[329950239,1718859038009,-500.0,0.00013698,2]
[329950241,1718859038023,-500.0,0.00013698,2]
[329950243,1718859038033,-500.0,0.00013698,2]
[329950245,1718859038043,-500.0,0.00013698,2]
[329950246,1718859038054,-500.0,0.00013698,2]
[329950247,1718859038064,-500.0,0.00013698,2]
[329950248,1718859038073,-558.61,0.00013698,2]
[329950250,1718859038083,-500.0,0.00013698,2]
[329950252,1718859038095,-500.0,0.00013698,2]
[329950254,1718859038105,-500.0,0.00013698,2]
[329950255,1718859038115,-777.59,0.00013698,2]
[329950256,1718859038124,-1225.9,0.00013698,2]
[329950257,1718859038134,-500.0,0.00013698,2]
[329950258,1718859038144,-500.0,0.00013698,2]
[329950259,1718859038154,-500.0,0.00013698,2]
[329950260,1718859038163,-500.0,0.00013698,2]
[329950261,1718859038172,-500.0,0.00013698,2]
[329950262,1718859038182,-969.27,0.00013698,2]
[329950263,1718859038193,-500.0,0.00013698,2]
[329950264,1718859038203,-500.0,0.00013698,2]
[329950265,1718859038212,-500.0,0.00013698,2]
[329950266,1718859038222,-500.0,0.00013698,2]
[329950267,1718859038231,-500.0,0.00013698,2]
[329950268,1718859038241,-500.0,0.00013698,2]
[329950269,1718859038251,-500.0,0.00013698,2]
[329950270,1718859038262,-1162.02,0.00013698,2]
[329950271,1718859038272,-3486.64,0.00013698,2]
[329950272,1718859038282,-500.0,0.00013698,2]
[329950273,1718859038292,-616.38,0.00013698,2]
[329950274,1718859038301,-500.0,0.00013698,2]
[329950275,1718859038310,-500.0,0.00013698,2]
[329950276,1718859038319,-500.0,0.00013698,2]
[329950277,1718859038328,-500.0,0.00013698,2]
[329950278,1718859038338,-14377.01,0.00013698,2]
[329950279,1718859038347,-500.0,0.00013698,2]
[329950280,1718859038357,-500.0,0.00013698,2]
[329950281,1718859038367,-500.0,0.00013698,2]
[329950282,1718859038376,-500.0,0.00013698,2]
[329950283,1718859038386,-543.66,0.00013698,2]
[329950284,1718859038395,-500.0,0.00013698,2]
[329950285,1718859038405,-500.0,0.00013698,2]
[329950286,1718859038415,-2842.84,0.00013698,2]
[329950287,1718859038424,-500.0,0.00013698,2]
[329950288,1718859038433,-500.0,0.00013698,2]
[329950289,1718859038443,-500.0,0.00013698,2]
[329950290,1718859038452,-500.0,0.00013698,2]
[329950291,1718859038461,-500.0,0.00013698,2]
[329950292,1718859038471,-500.0,0.00013698,2]
[329950293,1718859038480,-500.0,0.00013698,2]
[329950294,1718859038490,-640.58,0.00013698,2]
[329950295,1718859038499,-500.0,0.00013698,2]
[329950296,1718859038509,-617.16,0.00013698,2]
[329950297,1718859038519,-500.0,0.00013698,2]
[329950298,1718859038528,-500.0,0.00013698,2]
[329950299,1718859038537,-500.0,0.00013698,2]
[329950300,1718859038546,-500.0,0.00013698,2]
[329950301,1718859038555,-795.09,0.00013698,2]
[329950302,1718859038564,-500.0,0.00013698,2]
[329950303,1718859038573,-500.0,0.00013698,2]
[329950305,1718859038583,-500.0,0.00013698,2]
[329950306,1718859038592,-500.0,0.00013698,2]
[329950307,1718859038601,-500.0,0.00013698,2]
[329950309,1718859038610,-500.0,0.00013698,2]
[329950310,1718859038619,-601.38,0.00013698,2]
[329950311,1718859038629,-500.0,0.00013698,2]
[329950312,1718859038639,-162.59912916,0.00013698,2]
[329950313,1718859038648,-35630.04,0.00013698,2]
[329950314,1718859038658,-500.0,0.00013698,2]
[329950315,1718859038668,-6704.23,0.00013698,2]
[329950316,1718859038677,-500.0,0.00013698,2]
[329950317,1718859038686,-77.61494142,0.00013698,2]
[329950318,1718859039492,-970.90505858,0.00013698,2]
[329950319,1718859039503,-936.87,0.00013698,2]
[329950320,1718859039514,-500.0,0.00013698,2]
[329950321,1718859039524,-500.0,0.00013698,2]
[329950322,1718859039533,-156.83158711,0.00013698,2]
[329950323,1718859039547,-343.16841289,0.00013698,2]
[329950324,1718859039556,-1759.33098341,0.00013698,2]
[329950325,1718859039567,-809.73333754,0.00013698,2]
[329950326,1718859039617,-32.56567905,0.00013698,2]
[329950327,1718859039627,-500.0,0.00013698,2]
[329950328,1718859039637,-1125.21,0.00013698,2]
[329950329,1718859039646,-500.0,0.00013698,2]
[329950330,1718859039656,-500.0,0.00013698,2]
[329950331,1718859039670,-570.34425962,0.00013698,2]
[329950332,1718859039680,-500.0,0.00013698,2]
[329950333,1718859039689,-500.0,0.00013698,2]
[329950334,1718859039699,-500.0,0.00013698,2]
[329950335,1718859039708,-500.0,0.00013698,2]
[329950336,1718859039718,-500.0,0.00013698,2]
[329950337,1718859039727,-500.0,0.00013698,2]
[329950338,1718859039737,-4857.70674031,0.00013698,2]
[329950339,1718859039749,-2374.88325969,0.00013698,2]
[329950340,1718859039758,-675.49,0.00013698,2]
[329950341,1718859039769,-500.0,0.00013698,2]
[329950343,1718859039778,-380.04539066,0.00013698,2]
[329950344,1718859039794,-119.95460934,0.00013698,2]
[329950345,1718859039805,-500.0,0.00013698,2]
[329950346,1718859039818,-500.0,0.00013698,2]
[329950349,1718859039827,-500.0,0.00013698,2]
[329950350,1718859039837,-534.83,0.00013698,2]
[329950351,1718859039846,-355.51044829,0.00013698,2]
[329950352,1718859039856,-3294.7,0.00013698,2]
[329950353,1718859039866,-520.59835703,0.00013698,2]
[329950354,1718859039876,-242.99581436,0.00013698,2]
[329950355,1718859039886,-692.44,0.00013698,2]
[329950356,1718859039896,-525.10436306,0.00013698,2]
[329950357,1718859039905,-747.32845051,0.00013698,2]
[329950358,1718859039918,-1334.89154949,0.00013698,2]
[329950359,1718859039927,-500.0,0.00013698,2]
[329950360,1718859039936,-500.0,0.00013698,2]
[329950361,1718859039946,-413.16822012,0.00013698,2]
[329950362,1718859040017,-86.83177988,0.00013698,2]
[329950363,1718859040026,-360.48692922,0.00013698,2]
[329950364,1718859040038,-142.15643636,0.00013698,2]
[329950365,1718859040047,-789.03957619,0.00013698,2]
[329950366,1718859040058,-4210.96042381,0.00013698,2]
[329950367,1718859040068,-46.72606412,0.00013698,2]
[329950372,1718859041638,-938.49393588,0.00013698,2]
[329950373,1718859041648,-500.0,0.00013698,2]
[329950374,1718859041657,-500.0,0.00013698,2]
[329950375,1718859041668,-500.0,0.00013698,2]
[329950376,1718859041677,-684.77,0.00013698,2]
[329950377,1718859041688,-500.0,0.00013698,2]
[329950378,1718859041698,-1483.9533862,0.00013698,2]
[329950379,1718859041711,-432.68167204,0.00013698,2]
[329950380,1718859041723,-1454.24510192,0.00013698,2]
[329950381,1718859041738,-9212.08983984,0.00013698,2]
[329950382,1718859041747,-500.0,0.00013698,2]
[329950383,1718859041757,-1466.35,0.00013698,2]
[329950384,1718859041767,-780.5,0.00013698,2]
[329950385,1718859041777,-1984.63,0.00013698,2]
[329950386,1718859041786,-2284.17,0.00013698,2]
[329950387,1718859041796,-504.99932577,0.00013698,2]
[329950388,1718859041805,-500.0,0.00013698,2]
[329950389,1718859041816,-2035.9,0.00013698,2]
[329950390,1718859041825,-500.0,0.00013698,2]
[329950391,1718859041834,-500.0,0.00013698,2]
[329950392,1718859041845,-500.0,0.00013698,2]
[329950393,1718859041856,-500.0,0.00013698,2]
[329950394,1718859041865,-500.0,0.00013698,2]
[329950395,1718859041874,-1815.78,0.00013698,2]
[329950396,1718859041883,-1098.8,0.00013698,2]
[329950397,1718859041892,-500.0,0.00013698,2]
[329950398,1718859041901,-500.0,0.00013698,2]
[329950399,1718859041910,-945.94,0.00013698,2]
[329950400,1718859041919,-817.95400611,0.00013698,2]
[329950401,1718859041931,-1252.73599389,0.00013698,2]
[329950402,1718859041941,-517.31261854,0.00013698,2]
[329950403,1718859041951,-203.7937602,0.00013698,2]
[329950404,1718859041962,-296.2062398,0.00013698,2]
[329950405,1718859041971,-142.0837602,0.00013698,2]
[329950406,1718859041982,-357.9162398,0.00013698,2]
[329950407,1718859041992,-5271.62,0.00013698,2]
[329950408,1718859042002,-500.0,0.00013698,2]
[329950409,1718859042012,-5698.2627577,0.00013698,2]
[329950410,1718859042119,-318.60360543,0.00013698,2]
[329950411,1718859042131,-2344.10332019,0.00013698,2]
[329950412,1718859042142,-2882.02031668,0.00013698,2]
[329950413,1718859042152,-500.0,0.00013698,2]
[329950414,1718859042161,-681.54,0.00013698,2]
[329950415,1718859042171,-566.52,0.00013698,2]
[329950416,1718859042180,-500.0,0.00013698,2]
[329950417,1718859042190,-500.0,0.00013698,2]
[329950418,1718859042200,-495.0,0.00013698,2]
[329950419,1718859042209,-1520.42,0.00013698,2]
[329950420,1718859042219,-323.67161801,0.00013698,2]
[329950421,1718859042231,-307.83838199,0.00013698,2]
[329950422,1718859042240,-2703.27,0.00013698,2]
[329950423,1718859042250,-375.16692518,0.00013698,2]
[329950424,1718859042268,-124.83307482,0.00013698,2]
[329950425,1718859042278,-188.43692518,0.00013698,2]
[329950426,1718859042290,-311.56307482,0.00013698,2]
[329950427,1718859042299,-500.0,0.00013698,2]
[329950428,1718859042308,-500.0,0.00013698,2]
[329950429,1718859042677,-500.0,0.00013698,2]
[329950430,1718859042686,-522.2772513,0.00013698,2]
[329950431,1718859042696,-2609.55,0.00013698,2]
[329950432,1718859042704,-808.55403877,0.00013698,2]
[329950434,1718859042716,-413.27020903,0.00013698,2]
[329950435,1718859042729,-195.7957522,0.00013698,2]
[329950436,1718859042738,-500.0,0.00013698,2]
[329950437,1718859042748,-500.0,0.00013698,2]
[329950438,1718859042761,-229.45613702,0.00013698,2]
[329950439,1718859042781,-1757.16386298,0.00013698,2]
[329950440,1718859042790,-350.46129523,0.00013698,2]
[329950441,1718859042801,-412.98870477,0.00013698,2]
[329950442,1718859042811,-984.41,0.00013698,2]
[329950444,1718859042820,-367.60129523,0.00013698,2]
[329950449,1718859042869,-132.39870477,0.00013698,2]
[329950450,1718859042878,-500.0,0.00013698,2]
[329950451,1718859042888,-500.0,0.00013698,2]
[329950452,1718859042900,-1257.19,0.00013698,2]
[329950453,1718859042909,-233.82684523,0.00013698,2]
[329950454,1718859042920,-434.98315477,0.00013698,2]
[329950455,1718859042931,-418.10412214,0.00013698,2]
[329950459,1718859043009,-81.89587786,0.00013698,2]
[329950460,1718859043021,-988.86,0.00013698,2]
[329950461,1718859043031,-500.0,0.00013698,2]
[329950462,1718859043041,-500.0,0.00013698,2]
[329950463,1718859043053,-500.0,0.00013698,2]
[329950464,1718859043062,-500.0,0.00013698,2]
[329950465,1718859043071,-504.34,0.00013698,2]
[329950466,1718859043083,-647.61,0.00013698,2]
[329950467,1718859043094,-500.0,0.00013698,2]
[329950468,1718859043103,-500.0,0.00013698,2]
[329950469,1718859043114,-500.0,0.00013698,2]
[329950470,1718859043123,-500.0,0.00013698,2]
[329950471,1718859043133,-529.08203544,0.00013698,2]
[329950472,1718859043142,-655.1,0.00013698,2]
[329950473,1718859043151,-732.54308102,0.00013698,2]
[329950474,1718859043164,-22.81691898,0.00013698,2]
[329950475,1718859043173,-2322.19,0.00013698,2]
[329950476,1718859043183,-4869.732678,0.00013698,2]
[329950477,1718859043210,-5644.187322,0.00013698,2]
[329950478,1718859043221,-3333.01,0.00013698,2]
[329950479,1718859043231,-500.0,0.00013698,2]
[329950480,1718859043240,-4723.8579942,0.00013698,2]
[329950481,1718859043252,-408.2720058,0.00013698,2]
[329950482,1718859043263,-500.0,0.00013698,2]
[329950483,1718859043273,-500.0,0.00013698,2]
[329950484,1718859043282,-468.6289592,0.00013698,2]
[329950491,1718859043850,-250.0,0.0001297,2]
[329950492,1718859043859,-117.18761046,0.00013698,2]
[329950493,1718859043869,-34.67680966,0.00013698,2]
[329950494,1718859043929,-403.08586807,0.00013698,2]
[329950495,1718859043942,-62.23732227,0.00013698,2]
[329950496,1718859043951,-500.0,0.00013698,2]
[329950497,1718859043960,-446.92228691,0.00013698,2]
[329950498,1718859043972,-1932.17197635,0.00013698,2]
[329950499,1718859043983,-9264.75573674,0.00013698,2]
[329950500,1718859043993,-956.87,0.00013698,2]
[329950501,1718859044002,-544.48842405,0.00013698,2]
[329950502,1718859044012,-500.0,0.00013698,2]
[329950503,1718859044025,-500.0,0.00013698,2]
[329950504,1718859044034,-746.25,0.00013698,2]
[329950505,1718859044043,-408.064894,0.00013698,2]
[329950506,1718859044053,-500.0,0.00013698,2]
[329950507,1718859044063,-500.0,0.00013698,2]
[329950508,1718859044071,-234.32377056,0.00013698,2]
[329950509,1718859044081,-500.0,0.00013698,2]
[329950510,1718859044091,-500.0,0.00013698,2]
[329950511,1718859044102,-2325.94,0.00013698,2]
[329950512,1718859044112,-800.27,0.00013698,2]
[329950513,1718859044122,-4317.52,0.00013698,2]
[329950514,1718859044131,-1435.43,0.00013698,2]
[329950515,1718859044140,-545.23658941,0.00013698,2]
[329950516,1718859044150,-500.0,0.00013698,2]
[329950517,1718859044159,-1799.41,0.00013698,2]
[329950518,1718859044168,-627.84122063,0.00013698,2]
[329950519,1718859044177,-500.0,0.00013698,2]
[329950520,1718859044187,-2213.63,0.00013698,2]
[329950521,1718859044196,-500.0,0.00013698,2]
[329950522,1718859044205,-500.0,0.00013698,2]
[329950523,1718859044215,-500.0,0.00013698,2]
[329950524,1718859044224,-500.0,0.00013698,2]
[329950525,1718859044233,-500.0,0.00013698,2]
[329950526,1718859044243,-500.0,0.00013698,2]
[329950527,1718859044252,-560.91512831,0.00013698,2]
[329950528,1718859044261,-500.0,0.00013698,2]
[329950529,1718859044271,-5175.39,0.00013698,2]
[329950530,1718859044281,-500.0,0.00013698,2]
[329950531,1718859044290,-500.0,0.00013698,2]
[329950532,1718859044300,-677.2,0.00013698,2]
[329950533,1718859044309,-500.0,0.00013698,2]
[329950534,1718859044319,-552.95541957,0.00013698,2]
[329950535,1718859044328,-500.0,0.00013698,2]
[329950536,1718859044338,-500.0,0.00013698,2]
[329950537,1718859044348,-629.34,0.00013698,2]
[329950538,1718859044357,-5963.14,0.00013698,2]
[329950539,1718859044367,-500.0,0.00013698,2]
[329950540,1718859044376,-527.70628773,0.00013698,2]
[329950541,1718859044385,-500.0,0.00013698,2]
[329950542,1718859044395,-500.0,0.00013698,2]
[329950543,1718859044404,-500.0,0.00013698,2]
[329950544,1718859044414,-500.0,0.00013698,2]
[329950545,1718859044424,-500.0,0.00013698,2]
[329950546,1718859044434,-500.0,0.00013698,2]
[329950547,1718859044443,-1486.75,0.00013698,2]
[329950548,1718859044453,-500.0,0.00013698,2]
[329950549,1718859044463,-3541.9,0.00013698,2]
[329950550,1718859044473,-626.39833391,0.00013698,2]
[329950551,1718859044482,-2386.65,0.00013698,2]
[329950552,1718859044492,-847.85,0.00013698,2]
[329950553,1718859044501,-500.0,0.00013698,2]
[329950554,1718859044511,-500.0,0.00013698,2]
[329950555,1718859044523,-500.0,0.00013698,2]
[329950556,1718859044533,-2285.4,0.00013698,2]
[329950557,1718859044542,-500.0,0.00013698,2]
[329950558,1718859044551,-500.0,0.00013698,2]
[329950559,1718859044561,-803.86,0.00013698,2]
[329950560,1718859044570,-2302.0,0.00013698,2]
[329950561,1718859044579,-1140.17,0.00013698,2]
[329950562,1718859044589,-3958.0,0.00013698,2]
[329950563,1718859044600,-500.0,0.00013698,2]
[329950564,1718859044610,-500.0,0.00013698,2]
[329950565,1718859044620,-1654.69,0.00013698,2]
[329950566,1718859044629,-500.0,0.00013698,2]
[329950567,1718859044639,-500.0,0.00013698,2]
[329950568,1718859044649,-500.0,0.00013698,2]
[329950569,1718859044659,-1261.41,0.00013698,2]
[329950570,1718859044668,-500.0,0.00013698,2]
[329950571,1718859044677,-539.65001348,0.00013698,2]
[329950572,1718859044687,-500.0,0.00013698,2]
[329950573,1718859044696,-542.57151175,0.00013698,2]
[329950574,1718859044706,-736.75,0.00013698,2]
[329950575,1718859044715,-500.0,0.00013698,2]
[329950576,1718859044724,-900.97,0.00013698,2]
[329950577,1718859044733,-17569.66,0.00013698,2]
[329950578,1718859044743,-527.41364898,0.00013698,2]
[329950579,1718859044752,-500.0,0.00013698,2]
[329950580,1718859044761,-1558.36,0.00013698,2]
[329950581,1718859044774,-1098.16,0.00013698,2]
[329950582,1718859044783,-1947.26591004,0.00013698,2]
[329950583,1718859044802,-650.06191534,0.00013698,2]
[329950584,1718859044813,-1487.92434299,0.00013698,2]
[329950585,1718859044825,-387.72733961,0.00013698,2]
[329950586,1718859044858,-26.35049202,0.00013698,2]
[329950587,1718859044868,-500.0,0.00013698,2]
[329950588,1718859044878,-500.0,0.00013698,2]
[329950589,1718859044888,-6315.58,0.00013698,2]
[329950590,1718859044897,-1518.23,0.00013698,2]
[329950591,1718859044908,-796.87,0.00013698,2]
[329950592,1718859044917,-500.0,0.00013698,2]
[329950593,1718859044927,-500.0,0.00013698,2]
[329950594,1718859044939,-500.0,0.00013698,2]
[329950595,1718859044949,-500.0,0.00013698,2]
[329950596,1718859044958,-500.0,0.00013698,2]
[329950597,1718859044968,-1235.6,0.00013698,2]
[329950598,1718859044978,-500.0,0.00013698,2]
[329950599,1718859044987,-6644.42,0.00013698,2]
[329950600,1718859044997,-500.0,0.00013698,2]
[329950601,1718859045010,-667.41,0.00013698,2]
[329950602,1718859045024,-7349.76,0.00013698,2]
[329950603,1718859045033,-796.48,0.00013698,2]
[329950604,1718859045042,-1209.71,0.00013698,2]
[329950605,1718859045052,-500.0,0.00013698,2]
[329950606,1718859045062,-500.0,0.00013698,2]
[329950607,1718859045072,-500.0,0.00013698,2]
[329950608,1718859045081,-1192.0,0.00013698,2]
[329950609,1718859045092,-500.0,0.00013698,2]
[329950610,1718859045102,-500.0,0.00013698,2]
[329950611,1718859045111,-500.0,0.00013698,2]
[329950612,1718859045120,-1894.52,0.00013698,2]
[329950613,1718859045129,-500.0,0.00013698,2]
[329950614,1718859045139,-500.0,0.00013698,2]
[329950615,1718859045149,-500.0,0.00013698,2]
[329950616,1718859045158,-500.0,0.00013698,2]
[329950617,1718859045168,-14680.35,0.00013698,2]
[329950618,1718859045177,-500.0,0.00013698,2]
[329950619,1718859045187,-500.0,0.00013698,2]
[329950620,1718859045197,-500.0,0.00013698,2]
[329950621,1718859045206,-500.0,0.00013698,2]
[329950622,1718859045217,-864.68,0.00013698,2]
[329950623,1718859045226,-1239.28,0.00013698,2]
[329950624,1718859045236,-662.09,0.00013698,2]
[329950625,1718859045245,-500.0,0.00013698,2]
[329950626,1718859045254,-500.0,0.00013698,2]
[329950627,1718859045264,-500.0,0.00013698,2]
[329950628,1718859045276,-500.0,0.00013698,2]
[329950629,1718859045286,-2932.34,0.00013698,2]
[329950630,1718859045295,-500.0,0.00013698,2]
[329950631,1718859045304,-500.0,0.00013698,2]
[329950632,1718859045313,-500.0,0.00013698,2]
[329950633,1718859045323,-695.64,0.00013698,2]
[329950634,1718859045332,-501.21212632,0.00013698,2]
[329950635,1718859045342,-500.0,0.00013698,2]
[329950636,1718859045351,-2652.65,0.00013698,2]
[329950637,1718859045362,-1762.8,0.00013698,2]
[329950638,1718859045372,-521.99096205,0.00013698,2]
[329950639,1718859045381,-505.95807474,0.00013698,2]
[329950640,1718859045391,-500.0,0.00013698,2]
[329950641,1718859045400,-4164.57,0.00013698,2]
[329950642,1718859045410,-500.0,0.00013698,2]
[329950643,1718859045420,-3294.09,0.00013698,2]
[329950644,1718859045429,-500.0,0.00013698,2]
[329950645,1718859045438,-500.0,0.00013698,2]
[329950646,1718859045448,-500.0,0.00013698,2]
[329950647,1718859045457,-500.0,0.00013698,2]
[329950648,1718859045466,-2220.57,0.00013698,2]
[329950649,1718859045476,-1696.91,0.00013698,2]
[329950650,1718859045485,-500.0,0.00013698,2]
[329950651,1718859045494,-965.11,0.00013698,2]
[329950652,1718859045503,-500.0,0.00013698,2]
[329950653,1718859045513,-547.87205004,0.00013698,2]
[329950654,1718859045524,-536.6,0.00013698,2]
[329950655,1718859045534,-500.0,0.00013698,2]
[329950656,1718859045543,-2980.78,0.00013698,2]
[329950657,1718859045552,-500.0,0.00013698,2]
[329950658,1718859045561,-575.85503533,0.00013698,2]
[329950659,1718859045570,-4020.09,0.00013698,2]
[329950660,1718859045579,-1255.43,0.00013698,2]
[329950661,1718859045588,-500.0,0.00013698,2]
[329950662,1718859045598,-24654.01,0.00013698,2]
[329950663,1718859045607,-500.0,0.00013698,2]
[329950664,1718859045616,-500.0,0.00013698,2]
[329950665,1718859045626,-1272.5,0.00013698,2]
[329950666,1718859045635,-1111.01,0.00013698,2]
[329950667,1718859045645,-2503.09,0.00013698,2]
[329950668,1718859045654,-1855.77,0.00013698,2]
[329950669,1718859045663,-500.0,0.00013698,2]
[329950670,1718859045672,-517.47502994,0.00013698,2]
[329950671,1718859045681,-500.0,0.00013698,2]
[329950672,1718859045690,-705.02,0.00013698,2]
[329950673,1718859045700,-500.0,0.00013698,2]
[329950675,1718859045709,-921.04,0.00013698,2]
[329950677,1718859045719,-500.0,0.00013698,2]
[329950678,1718859045728,-2607.66,0.00013698,2]
[329950679,1718859045737,-2110.72,0.00013698,2]
[329950680,1718859045746,-500.0,0.00013698,2]
[329950681,1718859045755,-500.0,0.00013698,2]
[329950682,1718859045764,-500.0,0.00013698,2]
[329950683,1718859045776,-502.66953187,0.00013698,2]
[329950684,1718859045785,-500.0,0.00013698,2]
[329950685,1718859045794,-1899.92,0.00013698,2]
[329950686,1718859045803,-500.0,0.00013698,2]
[329950688,1718859045813,-500.0,0.00013698,2]
[329950689,1718859045822,-500.0,0.00013698,2]
[329950690,1718859045832,-517.91948251,0.00013698,2]
[329950691,1718859045841,-500.0,0.00013698,2]
[329950692,1718859045852,-1612.65,0.00013698,2]
[329950693,1718859045862,-1549.61,0.00013698,2]
[329950694,1718859045872,-500.0,0.00013698,2]
[329950695,1718859045881,-500.0,0.00013698,2]
[329950696,1718859045891,-908.65,0.00013698,2]
[329950697,1718859045901,-4707.87,0.00013698,2]
[329950698,1718859045911,-500.0,0.00013698,2]
[329950699,1718859045921,-533.22455207,0.00013698,2]
[329950700,1718859045931,-500.0,0.00013698,2]
[329950701,1718859045940,-1102.73,0.00013698,2]
[329950702,1718859045950,-3468.16,0.00013698,2]
[329950703,1718859045959,-509.65270908,0.00013698,2]
[329950704,1718859045969,-558.22812213,0.00013698,2]
[329950705,1718859045979,-500.0,0.00013698,2]
[329950706,1718859045988,-5013.43,0.00013698,2]
[329950707,1718859045997,-500.0,0.00013698,2]
[329950708,1718859046007,-500.0,0.00013698,2]
[329950709,1718859046020,-500.0,0.00013698,2]
[329950710,1718859046030,-8346.14,0.00013698,2]
[329950711,1718859046039,-519.67,0.00013698,2]
[329950712,1718859046050,-500.0,0.00013698,2]
[329950713,1718859046060,-500.0,0.00013698,2]
[329950714,1718859046071,-500.0,0.00013698,2]
[329950715,1718859046081,-500.0,0.00013698,2]
[329950716,1718859046092,-500.0,0.00013698,2]
[329950717,1718859046103,-900.5,0.00013698,2]
[329950718,1718859046113,-500.0,0.00013698,2]
[329950719,1718859046122,-1804.38,0.00013698,2]
[329950720,1718859046131,-4334.49,0.00013698,2]
[329950721,1718859046141,-500.0,0.00013698,2]
[329950722,1718859046150,-500.0,0.00013698,2]
[329950723,1718859046159,-500.0,0.00013698,2]
[329950724,1718859046169,-633.26,0.00013698,2]
[329950725,1718859046178,-500.0,0.00013698,2]
[329950726,1718859046187,-10601.4009926,0.00013698,2]
[329950727,1718859046202,-300.0,0.00013698,2]
[329950728,1718859046218,-1168.42692094,0.00013698,2]
[329950729,1718859046229,-520.52208646,0.00013698,2]
[329950730,1718859046238,-29.28063152,0.00013698,2]
[329950731,1718859046250,-470.71936848,0.00013698,2]
[329950732,1718859046259,-500.0,0.00013698,2]
[329950733,1718859046270,-654.94,0.00013698,2]
[329950734,1718859046279,-500.0,0.00013698,2]
[329950735,1718859046288,-85.72623737,0.00013698,2]
[329950736,1718859046301,-338.79383807,0.00013698,2]
[329950737,1718859046313,-75.47992456,0.00013698,2]
[329950738,1718859046322,-531.04,0.00013698,2]
[329950739,1718859046331,-815.8,0.00013698,2]
[329950740,1718859046341,-500.0,0.00013698,2]
[329950741,1718859046350,-609.21166312,0.00013698,2]
[329950742,1718859046360,-500.0,0.00013698,2]
[329950743,1718859046371,-2842.9,0.00013698,2]
[329950744,1718859046380,-500.0,0.00013698,2]
[329950745,1718859046390,-1965.15,0.00013698,2]
[329950746,1718859046400,-500.0,0.00013698,2]
[329950747,1718859046409,-500.0,0.00013698,2]
[329950748,1718859046418,-1262.68,0.00013698,2]
[329950749,1718859046427,-500.0,0.00013698,2]
[329950750,1718859046437,-4391.34,0.00013698,2]
[329950751,1718859046446,-500.0,0.00013698,2]
[329950752,1718859046455,-500.0,0.00013698,2]
[329950753,1718859046463,-5839.87,0.00013698,2]
[329950754,1718859046472,-707.1,0.00013698,2]
[329950755,1718859046481,-500.0,0.00013698,2]